[Event "Titled Tuesday Blitz November 22 Early 2022"]
[White "Deac, Bogdan-Daniel"]
[Black "Duda, Jan-Krzysztof"]
[WhiteFideId "1226380"]
[BlackFideId "1170546"]
[WhiteElo "2648"]
[BlackElo "2779"]
[Result "0-1"]
[Round "07"]
[TimeControl "180+1"]
[Date "2022.11.22"]
[WhiteClock "0:00:03"]
[BlackClock "0:01:05"]

1. e4 {[%clk 0:03:00]}  e5 {[%clk 0:02:59]} 2. Nf3 {[%clk 0:03:00]}  Nc6 {[%clk 0:02:59]} 3. Bb5 {[%clk 0:03:01]}  Nf6 {[%clk 0:03:00]} 4. O-O {[%clk 0:03:01]}  Nxe4 {[%clk 0:03:00]} 5. Re1 {[%clk 0:03:02]}  Nd6 {[%clk 0:03:01]} 6. Nxe5 {[%clk 0:03:02]}  Be7 {[%clk 0:03:01]} 7. Bf1 {[%clk 0:03:03]}  Nxe5 {[%clk 0:03:00]} 8. Rxe5 {[%clk 0:03:04]}  O-O {[%clk 0:03:00]} 9. Nc3 {[%clk 0:03:04]}  Ne8 {[%clk 0:02:59]} 10. Nd5 {[%clk 0:03:05]}  Bd6 {[%clk 0:02:58]} 11. Re1 {[%clk 0:03:05]}  c6 {[%clk 0:02:57]} 12. Ne3 {[%clk 0:03:06]}  Be7 {[%clk 0:02:57]} 13. c4 {[%clk 0:03:06]}  Nc7 {[%clk 0:02:52]} 14. d4 {[%clk 0:03:06]}  d5 {[%clk 0:02:52]} 15. cxd5 {[%clk 0:03:07]}  Nxd5 {[%clk 0:02:49]} 16. Nxd5 {[%clk 0:03:06]}  cxd5 {[%clk 0:02:50]} 17. Bf4 {[%clk 0:02:33]}  Bf6 {[%clk 0:02:37]} 18. Be5 {[%clk 0:02:30]}  Bxe5 {[%clk 0:02:36]} 19. Rxe5 {[%clk 0:02:29]}  Be6 {[%clk 0:02:32]} 20. Qb3 {[%clk 0:02:26]}  Qb6 {[%clk 0:02:31]} 21. Qxb6 {[%clk 0:02:17]}  axb6 {[%clk 0:02:32]} 22. Re3 {[%clk 0:02:17]}  Rfc8 {[%clk 0:02:28]} 23. Rb3 {[%clk 0:02:12]}  Rc6 {[%clk 0:02:28]} 24. a3 {[%clk 0:01:48]}  Kf8 {[%clk 0:02:28]} 25. Re1 {[%clk 0:01:41]}  Ke7 {[%clk 0:02:24]} 26. Bb5 {[%clk 0:01:13]}  Rc7 {[%clk 0:02:24]} 27. Bd3 {[%clk 0:01:02]}  Rc6 {[%clk 0:02:10]} 28. f4 {[%clk 0:00:42]}  Kd6 {[%clk 0:01:54]} 29. f5 {[%clk 0:00:39]}  Bc8 {[%clk 0:01:30]} 30. Rb4 {[%clk 0:00:37]}  g6 {[%clk 0:01:17]} 31. g4 {[%clk 0:00:36]}  gxf5 {[%clk 0:01:17]} 32. gxf5 {[%clk 0:00:36]}  Bd7 {[%clk 0:01:12]} 33. Kf2 {[%clk 0:00:18]}  Rg8 {[%clk 0:01:09]} 34. f6 {[%clk 0:00:11]}  Kc7 {[%clk 0:01:09]} 35. Bxh7 {[%clk 0:00:04]}  Rxf6+ {[%clk 0:01:08]} 36. Ke3 {[%clk 0:00:05]}  Re8+ {[%clk 0:01:05]} 37. Kd2 {[%clk 0:00:03]}  Rf2+ {[%clk 0:01:05]} 0-1


[Site "https://www.chess.com"]

[Event "Titled Tuesday Blitz November 22 Early 2022"]
[White "Derjabin, Ilja"]
[Black "Ljukin, Sergei"]
[WhiteFideId "14104768"]
[BlackFideId "14102200"]
[WhiteElo "2312"]
[BlackElo "2312"]
[Result "1-0"]
[Round "07"]
[TimeControl "180+1"]
[Date "2022.11.23"]
[WhiteClock "0:00:06"]
[BlackClock "0:00:01"]

1. d4 {[%clk 0:02:55]}  d5 {[%clk 0:02:59]} 2. c4 {[%clk 0:02:55]}  c6 {[%clk 0:02:59]} 3. Nf3 {[%clk 0:02:54]}  Nf6 {[%clk 0:03:00]} 4. Nc3 {[%clk 0:02:53]}  dxc4 {[%clk 0:02:59]} 5. a4 {[%clk 0:02:52]}  Bf5 {[%clk 0:02:59]} 6. e3 {[%clk 0:02:51]}  e6 {[%clk 0:02:59]} 7. Bxc4 {[%clk 0:02:50]}  Bb4 {[%clk 0:02:59]} 8. O-O {[%clk 0:02:50]}  O-O {[%clk 0:02:59]} 9. Nh4 {[%clk 0:02:50]}  Nbd7 {[%clk 0:02:50]} 10. Nxf5 {[%clk 0:02:49]}  exf5 {[%clk 0:02:50]} 11. Qf3 {[%clk 0:02:49]}  g6 {[%clk 0:02:49]} 12. Rd1 {[%clk 0:02:47]}  Qe7 {[%clk 0:02:46]} 13. a5 {[%clk 0:02:43]}  Ne4 {[%clk 0:02:44]} 14. Nxe4 {[%clk 0:01:52]}  fxe4 {[%clk 0:02:42]} 15. Qh3 {[%clk 0:01:52]}  Nf6 {[%clk 0:02:40]} 16. Bd2 {[%clk 0:01:43]}  Bd6 {[%clk 0:02:39]} 17. Rdc1 {[%clk 0:01:27]}  h5 {[%clk 0:02:38]} 18. Qh4 {[%clk 0:01:26]}  Kg7 {[%clk 0:01:52]} 19. f4 {[%clk 0:01:01]}  Qd7 {[%clk 0:01:21]} 20. d5 {[%clk 0:00:52]}  Nxd5 {[%clk 0:01:08]} 21. Bxd5 {[%clk 0:00:51]}  cxd5 {[%clk 0:01:08]} 22. Rd1 {[%clk 0:00:46]}  Be7 {[%clk 0:00:45]} 23. Bc3+ {[%clk 0:00:42]}  Kh7 {[%clk 0:00:42]} 24. Qg3 {[%clk 0:00:36]}  Qf5 {[%clk 0:00:37]} 25. a6 {[%clk 0:00:35]}  b6 {[%clk 0:00:34]} 26. Rd2 {[%clk 0:00:30]}  h4 {[%clk 0:00:28]} 27. Qh3 {[%clk 0:00:25]}  Qxh3 {[%clk 0:00:18]} 28. gxh3 {[%clk 0:00:26]}  Bc5 {[%clk 0:00:18]} 29. Kf2 {[%clk 0:00:26]}  Rad8 {[%clk 0:00:14]} 30. Rad1 {[%clk 0:00:26]}  f5 {[%clk 0:00:09]} 31. Rxd5 {[%clk 0:00:26]}  Rxd5 {[%clk 0:00:10]} 32. Rxd5 {[%clk 0:00:27]}  g5 {[%clk 0:00:10]} 33. b4 {[%clk 0:00:25]}  Be7 {[%clk 0:00:05]} 34. Rd7 {[%clk 0:00:25]}  Rf7 {[%clk 0:00:05]} 35. fxg5 {[%clk 0:00:25]}  f4 {[%clk 0:00:05]} 36. exf4 {[%clk 0:00:20]}  Bc5+ {[%clk 0:00:04]} 37. bxc5 {[%clk 0:00:19]}  Rxd7 {[%clk 0:00:04]} 38. cxb6 {[%clk 0:00:17]}  axb6 {[%clk 0:00:04]} 39. f5 {[%clk 0:00:16]}  Ra7 {[%clk 0:00:04]} 40. g6+ {[%clk 0:00:16]}  Kh6 {[%clk 0:00:03]} 41. Bd2+ {[%clk 0:00:09]}  Kg7 {[%clk 0:00:03]} 42. Bc3+ {[%clk 0:00:10]}  Kh6 {[%clk 0:00:03]} 43. g7 {[%clk 0:00:10]}  Kh7 {[%clk 0:00:03]} 44. Ke3 {[%clk 0:00:07]}  Rxa6 {[%clk 0:00:02]} 45. Kxe4 {[%clk 0:00:08]}  Kg8 {[%clk 0:00:02]} 46. Bd4 {[%clk 0:00:06]}  b5 {[%clk 0:00:02]} 47. Kf4 {[%clk 0:00:06]}  b4 {[%clk 0:00:01]} 48. f6 {[%clk 0:00:06]} 1-0


[Site "https://www.chess.com"]

[Event "Titled Tuesday Blitz November 22 Early 2022"]
[White "Donchenko, Alexander"]
[Black "Pajeken, Jakob Leon"]
[WhiteFideId "24603295"]
[BlackFideId "12942839"]
[WhiteElo "2572"]
[BlackElo "2429"]
[Result "1-0"]
[Round "07"]
[TimeControl "180+1"]
[Date "2022.11.23"]
[WhiteClock "0:00:20"]
[BlackClock "0:00:08"]

1. e4 {[%clk 0:03:00]}  e5 {[%clk 0:03:00]} 2. Nf3 {[%clk 0:03:00]}  Nc6 {[%clk 0:03:00]} 3. Bc4 {[%clk 0:03:00]}  Bc5 {[%clk 0:03:00]} 4. d3 {[%clk 0:03:01]}  Nf6 {[%clk 0:03:01]} 5. O-O {[%clk 0:03:01]}  O-O {[%clk 0:03:00]} 6. Re1 {[%clk 0:03:01]}  a6 {[%clk 0:02:58]} 7. a4 {[%clk 0:02:59]}  d6 {[%clk 0:02:58]} 8. c3 {[%clk 0:02:58]}  Ba7 {[%clk 0:02:52]} 9. h3 {[%clk 0:02:58]}  h6 {[%clk 0:02:52]} 10. Nbd2 {[%clk 0:02:57]}  Nh5 {[%clk 0:02:52]} 11. Nf1 {[%clk 0:02:54]}  Qf6 {[%clk 0:02:53]} 12. Be3 {[%clk 0:02:52]}  Bxe3 {[%clk 0:02:52]} 13. Nxe3 {[%clk 0:02:51]}  Nf4 {[%clk 0:02:52]} 14. Kh2 {[%clk 0:02:48]}  Be6 {[%clk 0:02:48]} 15. Bxe6 {[%clk 0:02:32]}  fxe6 {[%clk 0:02:46]} 16. Rf1 {[%clk 0:02:29]}  g5 {[%clk 0:02:40]} 17. Ng1 {[%clk 0:02:21]}  Rae8 {[%clk 0:02:33]} 18. b4 {[%clk 0:02:17]}  Ne7 {[%clk 0:02:29]} 19. b5 {[%clk 0:02:16]}  a5 {[%clk 0:02:28]} 20. b6 {[%clk 0:02:13]}  cxb6 {[%clk 0:02:28]} 21. Rb1 {[%clk 0:02:12]}  Nc8 {[%clk 0:02:28]} 22. Nc4 {[%clk 0:02:11]}  Qd8 {[%clk 0:02:24]} 23. g3 {[%clk 0:02:06]}  Ng6 {[%clk 0:02:23]} 24. Qb3 {[%clk 0:02:05]}  Qc7 {[%clk 0:02:19]} 25. Kg2 {[%clk 0:01:57]}  Rf7 {[%clk 0:02:06]} 26. Ne2 {[%clk 0:01:53]}  Ref8 {[%clk 0:02:00]} 27. Nxb6 {[%clk 0:01:52]}  Qc5 {[%clk 0:01:57]} 28. Qxe6 {[%clk 0:01:46]}  Kg7 {[%clk 0:01:57]} 29. d4 {[%clk 0:01:43]}  Qc6 {[%clk 0:01:54]} 30. Qd5 {[%clk 0:01:33]}  Qc7 {[%clk 0:01:38]} 31. Nxc8 {[%clk 0:01:27]}  Rxc8 {[%clk 0:01:39]} 32. Rb5 {[%clk 0:01:22]}  b6 {[%clk 0:01:29]} 33. Qb3 {[%clk 0:01:21]}  Rcf8 {[%clk 0:01:09]} 34. Rxb6 {[%clk 0:01:18]}  Qe7 {[%clk 0:01:09]} 35. Qd5 {[%clk 0:01:11]}  Qf6 {[%clk 0:01:01]} 36. Qxd6 {[%clk 0:01:08]}  Qf3+ {[%clk 0:00:59]} 37. Kg1 {[%clk 0:01:08]}  Rf6 {[%clk 0:00:59]} 38. Qc7+ {[%clk 0:00:59]}  R6f7 {[%clk 0:00:46]} 39. Qd6 {[%clk 0:00:59]}  Rf6 {[%clk 0:00:44]} 40. Qd7+ {[%clk 0:00:59]}  R8f7 {[%clk 0:00:18]} 41. Rxf6 {[%clk 0:00:59]}  Kxf6 {[%clk 0:00:15]} 42. Qg4 {[%clk 0:00:53]}  Qd3 {[%clk 0:00:14]} 43. dxe5+ {[%clk 0:00:49]}  Kxe5 {[%clk 0:00:12]} 44. Nd4 {[%clk 0:00:48]}  Rf6 {[%clk 0:00:10]} 45. Rd1 {[%clk 0:00:37]}  Qxc3 {[%clk 0:00:09]} 46. Nc6+ {[%clk 0:00:20]}  Rxc6 {[%clk 0:00:08]} 47. Qf5# {[%clk 0:00:20]} 1-0


[Site "https://www.chess.com"]

[Event "Titled Tuesday Blitz November 22 Early 2022"]
[White "Durarbayli, Vasif"]
[Black "Le, Tuan Minh"]
[WhiteFideId "13402935"]
[BlackFideId "12401153"]
[WhiteElo "2586"]
[BlackElo "2530"]
[Result "1-0"]
[Round "07"]
[TimeControl "180+1"]
[Date "2022.11.22"]
[WhiteClock "0:00:11"]
[BlackClock "0:00:03"]

1. e4 {[%clk 0:03:00]}  c5 {[%clk 0:03:00]} 2. Nf3 {[%clk 0:03:00]}  Nf6 {[%clk 0:03:00]} 3. e5 {[%clk 0:02:59]}  Nd5 {[%clk 0:03:00]} 4. Nc3 {[%clk 0:03:00]}  e6 {[%clk 0:03:01]} 5. Ne4 {[%clk 0:03:00]}  f5 {[%clk 0:03:01]} 6. Nc3 {[%clk 0:03:00]}  Nb4 {[%clk 0:03:01]} 7. Bc4 {[%clk 0:02:52]}  a6 {[%clk 0:02:52]} 8. O-O {[%clk 0:02:42]}  b5 {[%clk 0:02:51]} 9. Be2 {[%clk 0:02:43]}  N4c6 {[%clk 0:02:42]} 10. d4 {[%clk 0:02:39]}  cxd4 {[%clk 0:02:39]} 11. Nxd4 {[%clk 0:02:40]}  Nxd4 {[%clk 0:02:40]} 12. Qxd4 {[%clk 0:02:38]}  Nc6 {[%clk 0:02:41]} 13. Qe3 {[%clk 0:02:33]}  Be7 {[%clk 0:02:29]} 14. Bh5+ {[%clk 0:02:23]}  g6 {[%clk 0:02:27]} 15. Bf3 {[%clk 0:02:24]}  Bb7 {[%clk 0:02:26]} 16. Rd1 {[%clk 0:02:22]}  Qc7 {[%clk 0:02:05]} 17. b3 {[%clk 0:01:51]}  Nb4 {[%clk 0:01:50]} 18. Bxb7 {[%clk 0:01:45]}  Qxb7 {[%clk 0:01:51]} 19. Qe2 {[%clk 0:01:38]}  Rc8 {[%clk 0:01:47]} 20. Bb2 {[%clk 0:01:38]}  O-O {[%clk 0:01:47]} 21. Rd2 {[%clk 0:01:31]}  Rc7 {[%clk 0:01:45]} 22. a3 {[%clk 0:01:28]}  Nc6 {[%clk 0:01:46]} 23. Rad1 {[%clk 0:01:27]}  Rf7 {[%clk 0:01:15]} 24. Na2 {[%clk 0:01:25]}  Bc5 {[%clk 0:01:00]} 25. Nc1 {[%clk 0:01:22]}  f4 {[%clk 0:01:01]} 26. Qe4 {[%clk 0:01:13]}  f3 {[%clk 0:00:51]} 27. g3 {[%clk 0:01:06]}  Qc8 {[%clk 0:00:48]} 28. Nd3 {[%clk 0:00:53]}  Bb6 {[%clk 0:00:48]} 29. Nf4 {[%clk 0:00:44]}  Ne7 {[%clk 0:00:29]} 30. Nxe6 {[%clk 0:00:44]}  Rc6 {[%clk 0:00:05]} 31. Ng5 {[%clk 0:00:30]}  Rf5 {[%clk 0:00:03]} 32. h4 {[%clk 0:00:27]}  h6 {[%clk 0:00:02]} 33. Nxf3 {[%clk 0:00:22]}  Qf8 {[%clk 0:00:03]} 34. Kg2 {[%clk 0:00:22]}  Qf7 {[%clk 0:00:03]} 35. Rxd7 {[%clk 0:00:18]}  Rxc2 {[%clk 0:00:03]} 36. Qxc2 {[%clk 0:00:13]}  Rxf3 {[%clk 0:00:03]} 37. Rd8+ {[%clk 0:00:13]}  Kh7 {[%clk 0:00:04]} 38. Rh8+ {[%clk 0:00:11]}  Kxh8 {[%clk 0:00:02]} 39. e6+ {[%clk 0:00:12]}  Qf6 {[%clk 0:00:02]} 40. Bxf6+ {[%clk 0:00:12]}  Rxf6 {[%clk 0:00:02]} 41. f4 {[%clk 0:00:11]}  Nf5 {[%clk 0:00:03]} 42. Qc8+ {[%clk 0:00:11]}  Kh7 {[%clk 0:00:03]} 43. Rd7+ {[%clk 0:00:11]} 1-0


[Site "https://www.chess.com"]

[Event "Titled Tuesday Blitz November 22 Early 2022"]
[White "Erdogdu, Mert"]
[Black "Principe, Gerson"]
[WhiteFideId "6301495"]
[BlackFideId "3804550"]
[WhiteElo "2413"]
[BlackElo "2280"]
[Result "1/2-1/2"]
[Round "07"]
[TimeControl "180+1"]
[Date "2022.11.23"]
[WhiteClock "0:00:06"]
[BlackClock "0:00:06"]

1. e4 {[%clk 0:03:00]}  c6 {[%clk 0:02:59]} 2. c4 {[%clk 0:02:59]}  d5 {[%clk 0:02:56]} 3. exd5 {[%clk 0:02:59]}  cxd5 {[%clk 0:02:56]} 4. d4 {[%clk 0:03:00]}  Nf6 {[%clk 0:02:53]} 5. Nc3 {[%clk 0:03:00]}  e6 {[%clk 0:02:52]} 6. Nf3 {[%clk 0:02:59]}  Bb4 {[%clk 0:02:52]} 7. cxd5 {[%clk 0:02:58]}  Nxd5 {[%clk 0:02:49]} 8. Bd2 {[%clk 0:02:58]}  Nc6 {[%clk 0:02:43]} 9. Bd3 {[%clk 0:02:58]}  Be7 {[%clk 0:02:41]} 10. O-O {[%clk 0:02:58]}  O-O {[%clk 0:02:41]} 11. a3 {[%clk 0:02:58]}  b6 {[%clk 0:02:34]} 12. Nxd5 {[%clk 0:02:56]}  Qxd5 {[%clk 0:02:30]} 13. Qc2 {[%clk 0:02:55]}  Nxd4 {[%clk 0:02:18]} 14. Bxh7+ {[%clk 0:02:46]}  Kh8 {[%clk 0:02:18]} 15. Nxd4 {[%clk 0:02:44]}  Qxd4 {[%clk 0:02:16]} 16. Bc3 {[%clk 0:02:39]}  Qh4 {[%clk 0:02:05]} 17. Be4 {[%clk 0:02:37]}  Ba6 {[%clk 0:02:05]} 18. Rfe1 {[%clk 0:02:31]}  Bd6 {[%clk 0:01:32]} 19. g3 {[%clk 0:02:23]}  Qh5 {[%clk 0:01:23]} 20. Bxa8 {[%clk 0:01:21]}  Rxa8 {[%clk 0:01:24]} 21. Qe4 {[%clk 0:01:20]}  Rb8 {[%clk 0:01:21]} 22. Rad1 {[%clk 0:01:15]}  Bb7 {[%clk 0:01:11]} 23. Qh4 {[%clk 0:00:49]}  Qxh4 {[%clk 0:01:09]} 24. gxh4 {[%clk 0:00:50]}  Bd5 {[%clk 0:01:00]} 25. Rxd5 {[%clk 0:00:48]}  exd5 {[%clk 0:00:58]} 26. Rd1 {[%clk 0:00:49]}  Be7 {[%clk 0:00:31]} 27. Rxd5 {[%clk 0:00:47]}  Rd8 {[%clk 0:00:31]} 28. Rf5 {[%clk 0:00:39]}  Kg8 {[%clk 0:00:30]} 29. h5 {[%clk 0:00:39]}  Rd7 {[%clk 0:00:16]} 30. Kf1 {[%clk 0:00:36]}  Rc7 {[%clk 0:00:13]} 31. a4 {[%clk 0:00:34]}  Rc5 {[%clk 0:00:14]} 32. Rxc5 {[%clk 0:00:30]}  Bxc5 {[%clk 0:00:15]} 33. f3 {[%clk 0:00:30]}  Kh7 {[%clk 0:00:15]} 34. Ke2 {[%clk 0:00:29]}  Kh6 {[%clk 0:00:16]} 35. Kd3 {[%clk 0:00:28]}  f6 {[%clk 0:00:16]} 36. Kc4 {[%clk 0:00:26]}  Kxh5 {[%clk 0:00:12]} 37. b4 {[%clk 0:00:21]}  Bg1 {[%clk 0:00:11]} 38. Kb5 {[%clk 0:00:14]}  Bxh2 {[%clk 0:00:11]} 39. Ka6 {[%clk 0:00:14]}  Bg1 {[%clk 0:00:11]} 40. b5 {[%clk 0:00:14]}  Kg5 {[%clk 0:00:07]} 41. Bd2+ {[%clk 0:00:13]}  Kh4 {[%clk 0:00:07]} 42. Kxa7 {[%clk 0:00:13]}  Kg3 {[%clk 0:00:07]} 43. f4 {[%clk 0:00:14]}  Kg4 {[%clk 0:00:06]} 44. Kb7 {[%clk 0:00:13]}  g5 {[%clk 0:00:05]} 45. fxg5 {[%clk 0:00:13]}  fxg5 {[%clk 0:00:06]} 46. Ka6 {[%clk 0:00:11]}  Kh4 {[%clk 0:00:06]} 47. Bxg5+ {[%clk 0:00:04]}  Kxg5 {[%clk 0:00:06]} 48. a5 {[%clk 0:00:05]}  bxa5 {[%clk 0:00:06]} 49. Kxa5 {[%clk 0:00:05]}  Kf6 {[%clk 0:00:06]} 50. b6 {[%clk 0:00:06]}  Bxb6+ {[%clk 0:00:06]} 1/2-1/2


[Site "https://www.chess.com"]

[Event "Titled Tuesday Blitz November 22 Early 2022"]
[White "Ezat, Mohamed"]
[Black "Begunov, Konstantin"]
[WhiteFideId "10600906"]
[BlackFideId "4118510"]
[WhiteElo "2386"]
[BlackElo "2140"]
[Result "1-0"]
[Round "07"]
[TimeControl "180+1"]
[Date "2022.11.23"]
[WhiteClock "0:00:04"]
[BlackClock "0:00:03"]

1. d4 {[%clk 0:03:00]}  d5 {[%clk 0:03:00]} 2. c4 {[%clk 0:02:59]}  c6 {[%clk 0:03:01]} 3. Nc3 {[%clk 0:02:59]}  Nf6 {[%clk 0:03:01]} 4. cxd5 {[%clk 0:03:00]}  cxd5 {[%clk 0:03:02]} 5. Bf4 {[%clk 0:03:00]}  Nc6 {[%clk 0:03:02]} 6. e3 {[%clk 0:03:00]}  a6 {[%clk 0:03:02]} 7. Bd3 {[%clk 0:03:00]}  Bg4 {[%clk 0:03:02]} 8. Nge2 {[%clk 0:02:58]}  e6 {[%clk 0:03:01]} 9. O-O {[%clk 0:02:58]}  Bd6 {[%clk 0:03:01]} 10. f3 {[%clk 0:02:58]}  Bh5 {[%clk 0:03:01]} 11. Rc1 {[%clk 0:02:59]}  O-O {[%clk 0:03:00]} 12. Na4 {[%clk 0:02:59]}  Rc8 {[%clk 0:02:59]} 13. Nc5 {[%clk 0:02:57]}  Bxc5 {[%clk 0:02:58]} 14. Rxc5 {[%clk 0:02:56]}  Qb6 {[%clk 0:02:56]} 15. Qd2 {[%clk 0:02:42]}  Nd7 {[%clk 0:02:48]} 16. Rcc1 {[%clk 0:02:37]}  Nb4 {[%clk 0:02:39]} 17. Bb1 {[%clk 0:02:33]}  Bg6 {[%clk 0:02:37]} 18. Bxg6 {[%clk 0:02:24]}  hxg6 {[%clk 0:02:38]} 19. a3 {[%clk 0:02:24]}  Nc6 {[%clk 0:02:37]} 20. b4 {[%clk 0:02:19]}  e5 {[%clk 0:02:00]} 21. Bg3 {[%clk 0:02:15]}  exd4 {[%clk 0:01:56]} 22. exd4 {[%clk 0:02:11]}  Nde5 {[%clk 0:01:50]} 23. Rc5 {[%clk 0:01:50]}  Nc4 {[%clk 0:01:42]} 24. Qc1 {[%clk 0:01:49]}  Rfe8 {[%clk 0:01:22]} 25. Re1 {[%clk 0:01:43]}  Qd8 {[%clk 0:00:54]} 26. Nf4 {[%clk 0:01:18]}  Rxe1+ {[%clk 0:00:47]} 27. Qxe1 {[%clk 0:01:12]}  Nxa3 {[%clk 0:00:40]} 28. Nxd5 {[%clk 0:01:06]}  Nb5 {[%clk 0:00:36]} 29. Bf2 {[%clk 0:00:54]}  Kh7 {[%clk 0:00:24]} 30. Qe4 {[%clk 0:00:44]}  f5 {[%clk 0:00:19]} 31. Qe6 {[%clk 0:00:26]}  b6 {[%clk 0:00:18]} 32. Rxc6 {[%clk 0:00:23]}  Rxc6 {[%clk 0:00:16]} 33. Qxc6 {[%clk 0:00:23]}  Qg5 {[%clk 0:00:14]} 34. h4 {[%clk 0:00:17]}  Qd2 {[%clk 0:00:13]} 35. Qd7 {[%clk 0:00:17]}  Qd1+ {[%clk 0:00:11]} 36. Kh2 {[%clk 0:00:16]}  Qe2 {[%clk 0:00:11]} 37. Nf6+ {[%clk 0:00:16]}  Kh6 {[%clk 0:00:11]} 38. Ng8+ {[%clk 0:00:12]}  Kh7 {[%clk 0:00:11]} 39. Nf6+ {[%clk 0:00:05]}  Kh6 {[%clk 0:00:10]} 40. Bg3 {[%clk 0:00:05]}  gxf6 {[%clk 0:00:08]} 41. Bf4+ {[%clk 0:00:06]}  g5 {[%clk 0:00:08]} 42. hxg5+ {[%clk 0:00:04]}  fxg5 {[%clk 0:00:09]} 43. Qc6+ {[%clk 0:00:04]}  Kh5 {[%clk 0:00:08]} 44. Be5 {[%clk 0:00:03]}  Qe3 {[%clk 0:00:06]} 45. Qe8+ {[%clk 0:00:03]}  Kh6 {[%clk 0:00:05]} 46. Qc6+ {[%clk 0:00:04]}  Kh5 {[%clk 0:00:05]} 47. Qe8+ {[%clk 0:00:05]}  Kh6 {[%clk 0:00:05]} 48. Qg8 {[%clk 0:00:04]}  Nxd4 {[%clk 0:00:03]} 49. Qg7+ {[%clk 0:00:04]}  Kh5 {[%clk 0:00:03]} 50. Qh7# {[%clk 0:00:04]} 1-0


[Site "https://www.chess.com"]

[Event "Titled Tuesday Blitz November 22 Early 2022"]
[White "Fiol, Fabrice"]
[Black "Vaishali, Rameshbabu"]
[WhiteFideId "611670"]
[BlackFideId "5091756"]
[WhiteElo "2456"]
[BlackElo "2351"]
[Result "0-1"]
[Round "07"]
[TimeControl "180+1"]
[Date "2022.11.23"]
[WhiteClock "0:00:32"]
[BlackClock "0:01:10"]

1. e4 {[%clk 0:02:58]}  c5 {[%clk 0:02:59]} 2. Nf3 {[%clk 0:02:57]}  d6 {[%clk 0:02:59]} 3. Bb5+ {[%clk 0:02:57]}  Bd7 {[%clk 0:02:59]} 4. Bxd7+ {[%clk 0:02:57]}  Qxd7 {[%clk 0:03:00]} 5. O-O {[%clk 0:02:57]}  Nc6 {[%clk 0:02:59]} 6. c3 {[%clk 0:02:57]}  Nf6 {[%clk 0:02:58]} 7. Re1 {[%clk 0:02:57]}  g6 {[%clk 0:02:42]} 8. d4 {[%clk 0:02:56]}  cxd4 {[%clk 0:02:43]} 9. cxd4 {[%clk 0:02:57]}  Bg7 {[%clk 0:02:43]} 10. Nc3 {[%clk 0:02:57]}  O-O {[%clk 0:02:43]} 11. h3 {[%clk 0:02:38]}  d5 {[%clk 0:02:41]} 12. e5 {[%clk 0:02:36]}  Ne4 {[%clk 0:02:41]} 13. Nxe4 {[%clk 0:02:34]}  dxe4 {[%clk 0:02:41]} 14. Rxe4 {[%clk 0:02:35]}  Rfd8 {[%clk 0:02:41]} 15. e6 {[%clk 0:02:19]}  fxe6 {[%clk 0:02:37]} 16. Qb3 {[%clk 0:02:17]}  Qd5 {[%clk 0:02:36]} 17. Rxe6 {[%clk 0:02:16]}  Bf6 {[%clk 0:01:37]} 18. Qxd5 {[%clk 0:01:29]}  Rxd5 {[%clk 0:01:38]} 19. Re4 {[%clk 0:01:29]}  Nxd4 {[%clk 0:01:35]} 20. Nxd4 {[%clk 0:01:29]}  Rxd4 {[%clk 0:01:36]} 21. Rxd4 {[%clk 0:01:24]}  Bxd4 {[%clk 0:01:37]} 22. Rb1 {[%clk 0:01:23]}  Rc8 {[%clk 0:01:35]} 23. Be3 {[%clk 0:01:18]}  Bxe3 {[%clk 0:01:33]} 24. fxe3 {[%clk 0:01:19]}  Rc2 {[%clk 0:01:34]} 25. a3 {[%clk 0:01:11]}  Kf7 {[%clk 0:01:33]} 26. Rf1+ {[%clk 0:01:08]}  Ke6 {[%clk 0:01:33]} 27. Rf2 {[%clk 0:01:09]}  Rxf2 {[%clk 0:01:29]} 28. Kxf2 {[%clk 0:01:09]}  Kd5 {[%clk 0:01:30]} 29. Kf3 {[%clk 0:01:08]}  Kc4 {[%clk 0:01:14]} 30. Ke4 {[%clk 0:00:50]}  b5 {[%clk 0:01:12]} 31. Ke5 {[%clk 0:00:49]}  Kb3 {[%clk 0:01:07]} 32. Ke6 {[%clk 0:00:28]}  Kxb2 {[%clk 0:01:08]} 33. Kxe7 {[%clk 0:00:29]}  Kxa3 {[%clk 0:01:07]} 34. Kd6 {[%clk 0:00:29]}  b4 {[%clk 0:01:07]} 35. e4 {[%clk 0:00:30]}  b3 {[%clk 0:01:08]} 36. e5 {[%clk 0:00:31]}  b2 {[%clk 0:01:09]} 37. e6 {[%clk 0:00:31]}  b1=Q {[%clk 0:01:10]} 38. e7 {[%clk 0:00:32]}  Qb5 {[%clk 0:01:10]} 0-1


[Site "https://www.chess.com"]

[Event "Titled Tuesday Blitz November 22 Early 2022"]
[White "Firouzja, Alireza"]
[Black "Baskakov, Egor"]
[WhiteFideId "12573981"]
[BlackFideId "24197866"]
[WhiteElo "2903"]
[BlackElo "2211"]
[Result "1-0"]
[Round "07"]
[TimeControl "180+1"]
[Date "2022.11.22"]
[WhiteClock "0:02:11"]
[BlackClock "0:02:02"]

1. d4 {[%clk 0:02:56]}  Nf6 {[%clk 0:02:59]} 2. Bg5 {[%clk 0:02:56]}  e6 {[%clk 0:03:00]} 3. e4 {[%clk 0:02:52]}  Be7 {[%clk 0:03:00]} 4. Bd3 {[%clk 0:02:50]}  d5 {[%clk 0:03:00]} 5. e5 {[%clk 0:02:46]}  Nfd7 {[%clk 0:02:56]} 6. Bxe7 {[%clk 0:02:39]}  Qxe7 {[%clk 0:02:57]} 7. c3 {[%clk 0:02:34]}  c5 {[%clk 0:02:58]} 8. Nf3 {[%clk 0:02:32]}  Nc6 {[%clk 0:02:58]} 9. O-O {[%clk 0:02:30]}  O-O {[%clk 0:02:58]} 10. Re1 {[%clk 0:02:26]}  f6 {[%clk 0:02:55]} 11. exf6 {[%clk 0:02:20]}  Qxf6 {[%clk 0:02:56]} 12. Bb5 {[%clk 0:02:11]}  e5 {[%clk 0:02:13]} 13. Bxc6 {[%clk 0:02:10]}  bxc6 {[%clk 0:02:13]} 14. dxe5 {[%clk 0:02:11]}  Qe6 {[%clk 0:02:11]} 15. Nbd2 {[%clk 0:02:10]}  Ba6 {[%clk 0:02:09]} 16. b4 {[%clk 0:02:10]}  Rab8 {[%clk 0:02:05]} 17. a3 {[%clk 0:02:11]}  Bd3 {[%clk 0:02:04]} 18. Nb3 {[%clk 0:02:11]}  c4 {[%clk 0:02:03]} 19. Nbd4 {[%clk 0:02:10]}  Qg6 {[%clk 0:02:03]} 20. e6 {[%clk 0:02:09]}  Nf6 {[%clk 0:02:02]} 21. Nxc6 {[%clk 0:02:09]}  Rbe8 {[%clk 0:02:02]} 22. e7 {[%clk 0:02:10]}  Rf7 {[%clk 0:02:02]} 23. Nce5 {[%clk 0:02:11]} 1-0


[Site "https://www.chess.com"]

[Event "Titled Tuesday Blitz November 22 Early 2022"]
[White "Gabrielian, Artur"]
[Black "Bluebaum, Matthias"]
[WhiteFideId "4131002"]
[BlackFideId "24651516"]
[WhiteElo "2432"]
[BlackElo "2633"]
[Result "0-1"]
[Round "07"]
[TimeControl "180+1"]
[Date "2022.11.22"]
[WhiteClock "0:02:27"]
[BlackClock "0:02:06"]

1. e4 {[%clk 0:03:00]}  e6 {[%clk 0:03:00]} 2. d4 {[%clk 0:03:00]}  d5 {[%clk 0:03:01]} 3. Nc3 {[%clk 0:03:00]}  Nf6 {[%clk 0:03:01]} 4. Bg5 {[%clk 0:02:59]}  dxe4 {[%clk 0:03:02]} 5. Nxe4 {[%clk 0:02:59]}  Be7 {[%clk 0:03:02]} 6. Nxf6+ {[%clk 0:02:52]}  Bxf6 {[%clk 0:03:02]} 7. Bxf6 {[%clk 0:02:52]}  Qxf6 {[%clk 0:03:03]} 8. Nf3 {[%clk 0:02:52]}  O-O {[%clk 0:03:04]} 9. Qd3 {[%clk 0:02:49]}  Rd8 {[%clk 0:03:03]} 10. Qe4 {[%clk 0:02:47]}  Nc6 {[%clk 0:02:35]} 11. Bd3 {[%clk 0:02:42]}  Nxd4 {[%clk 0:02:10]} 12. Qxh7+ {[%clk 0:02:39]}  Kf8 {[%clk 0:02:10]} 13. Nxd4 {[%clk 0:02:31]}  Rxd4 {[%clk 0:02:11]} 14. O-O-O {[%clk 0:02:27]}  Rh4 {[%clk 0:02:06]} 0-1


[Site "https://www.chess.com"]